bitfinex/quotes_BTCUSD_20241107
["timestamp","ask_amount","ask_price","bid_price","bid_amount"]
[1730999680272,0.015833,76190.0,76189.0,0.53300102]
[1730999680756,0.015833,76190.0,76189.0,0.39576]
[1730999680971,0.015833,76190.0,76189.0,0.39676]
[1730999681195,0.015833,76190.0,76189.0,0.39476]
[1730999681649,0.199033,76190.0,76189.0,0.33245041]
[1730999681862,0.005,76172.0,76168.0,0.19810218]
[1730999682079,0.15736868,76172.0,76168.0,0.19810218]
[1730999682298,0.15736868,76172.0,76162.0,0.06398961]
[1730999682509,0.005,76172.0,76161.0,0.005]
[1730999682720,0.005,76172.0,76160.0,0.19810218]
[1730999682721,0.005,76172.0,76163.0,0.39387]
[1730999683790,0.15736868,76172.0,76163.0,0.39387]
[1730999684211,0.005,76172.0,76170.0,0.005]
[1730999684423,0.005,76180.0,76170.0,0.005]
[1730999684628,0.005,76180.0,76171.0,0.52609102]
[1730999685051,0.005,76178.0,76171.0,0.52609102]
[1730999685264,0.005,76172.0,76171.0,0.52609102]
[1730999685472,0.007,76172.0,76171.0,0.52609102]
[1730999685682,0.105,76180.0,76171.0,0.52609102]
[1730999686079,0.107,76180.0,76171.0,0.52709102]
[1730999686314,0.1,76180.0,76173.0,0.005]
[1730999686522,0.01801995,76184.0,76174.0,0.13224102]
[1730999686741,0.30310218,76187.0,76174.0,0.52608102]
[1730999686957,0.1,76181.0,76174.0,0.52608102]
[1730999687168,0.1,76175.0,76174.0,0.52608102]
[1730999688024,0.005,76183.0,76174.0,0.57968912]
[1730999688444,0.014,76180.0,76174.0,0.57868912]
[1730999688666,0.014,76180.0,76174.0,0.57968912]
[1730999688878,0.014,76175.0,76174.0,0.52808102]
[1730999689353,0.005,76184.0,76174.0,0.52708102]
[1730999689572,0.005,76184.0,76174.0,0.52808102]
[1730999689573,0.014,76183.0,76174.0,0.52808102]
[1730999689788,0.014,76183.0,76174.0,0.52708102]
[1730999690013,0.014,76183.0,76174.0,0.52608102]
[1730999690223,0.014,76175.0,76174.0,0.52708102]
[1730999690465,0.014,76175.0,76174.0,0.52808102]
[1730999690895,0.014,76175.0,76174.0,0.52708102]
[1730999691321,0.005,76184.0,76174.0,0.52708102]
[1730999691533,0.014,76183.0,76174.0,0.52808102]
[1730999691781,0.15236868,76176.0,76174.0,0.52608102]
[1730999692004,0.105,76175.0,76174.0,0.39384]
[1730999692222,0.1954,76175.0,76174.0,0.39484]
[1730999692451,0.1814,76175.0,76174.0,0.39484]
[1730999692662,0.2239,76175.0,76174.0,0.39484]
[1730999692870,0.2289,76175.0,76174.0,0.39584]
[1730999693329,0.2289,76175.0,76174.0,0.39484]
[1730999693553,0.595473,76175.0,76174.0,0.39484]
[1730999693799,0.595473,76175.0,76174.0,0.39384]
[1730999694044,0.433374,76175.0,76174.0,0.39384]
[1730999694283,0.2419,76175.0,76174.0,0.39484]
[1730999694530,0.2439,76175.0,76174.0,0.39584]
[1730999694756,0.2429,76175.0,76174.0,0.39484]
[1730999694978,0.2419,76175.0,76174.0,0.39484]
[1730999695217,0.2419,76175.0,76145.0,0.005]
[1730999695218,0.005,76161.0,76143.0,0.005]
[1730999695447,0.005,76161.0,76151.0,0.13224102]
[1730999695448,0.005,76157.0,76151.0,0.13224102]
[1730999696347,0.005,76157.0,76152.0,0.39394]
[1730999696589,0.005,76157.0,76153.0,0.13224102]
[1730999697039,0.005,76157.0,76154.0,0.39394]
[1730999697289,0.005,76157.0,76155.0,0.13224102]
[1730999697716,0.005,76157.0,76156.0,0.39393]
[1730999697932,0.033,76157.0,76156.0,0.39393]
[1730999698385,0.019,76157.0,76156.0,0.39393]
[1730999698810,0.033,76157.0,76156.0,0.39393]
[1730999699019,0.047,76157.0,76156.0,0.39393]
[1730999699237,0.019,76157.0,76156.0,0.52617102]
[1730999699469,0.014,76157.0,76156.0,0.52617102]
[1730999699689,0.028,76157.0,76156.0,0.52717102]
[1730999700118,0.014,76157.0,76156.0,0.52717102]
[1730999700343,0.028,76157.0,76156.0,0.52817102]
[1730999701220,0.014,76157.0,76156.0,0.52717102]
[1730999701434,0.014,76157.0,76156.0,0.52817102]
[1730999701435,0.028,76157.0,76156.0,0.52817102]
[1730999701647,0.028,76157.0,76156.0,0.52717102]
[1730999702079,0.042,76157.0,76156.0,0.52817102]
[1730999703005,0.05210149,76162.0,76156.0,0.52617102]
[1730999703220,0.05210149,76162.0,76157.0,0.13224102]
[1730999703437,0.1,76164.0,76157.0,0.13224102]
[1730999703657,0.005,76171.0,76158.0,0.39392]
[1730999703864,0.05257596,76164.0,76159.0,0.13224102]
[1730999704074,0.005,76171.0,76159.0,0.13224102]
[1730999704297,0.005,76171.0,76160.0,0.39391]
[1730999704526,0.005,76171.0,76161.0,0.13224102]
[1730999704958,0.005,76171.0,76162.0,0.3939]
[1730999704959,0.1,76164.0,76162.0,0.3939]
[1730999705178,0.20310218,76163.0,76162.0,0.3939]
[1730999705403,0.5431785,76163.0,76162.0,0.3789]
[1730999705621,0.007,76159.0,76158.0,0.001]
[1730999706086,0.007,76151.0,76141.0,0.19810218]
[1730999706293,0.1,76151.0,76141.0,0.19810218]
[1730999706502,0.30063122,76151.0,76141.0,0.19810218]
[1730999706726,0.19356253,76151.0,76141.0,0.19810218]
[1730999706947,0.19356253,76151.0,76131.0,3.001795]
[1730999706948,0.15236868,76142.0,76131.0,3.001795]
[1730999707173,0.0828,76144.0,76131.0,3.001795]
[1730999707174,0.15236868,76134.0,76131.0,3.001795]
[1730999708102,0.15236868,76132.0,76131.0,3.001795]
[1730999708313,0.1,76133.0,76131.0,3.001795]
[1730999708748,0.1,76133.0,76131.0,3.13403602]
[1730999708961,0.1,76133.0,76131.0,3.13503602]
[1730999709177,0.1,76133.0,76131.0,3.13403602]
[1730999709396,0.15404316,76133.0,76131.0,3.13403602]
[1730999709616,0.05404316,76133.0,76131.0,3.13403602]
[1730999710059,0.014,76133.0,76131.0,3.13503602]
[1730999710719,0.15236868,76132.0,76131.0,3.13503602]
[1730999710960,0.15236868,76132.0,76131.0,3.002795]
[1730999710961,0.30063122,76132.0,76131.0,3.002795]
[1730999711173,0.30063122,76132.0,76131.0,3.001795]
[1730999711607,0.37190274,76132.0,76131.0,3.001795]
[1730999711821,0.37190274,76132.0,76131.0,3.002795]
[1730999712038,0.37190274,76132.0,76131.0,3.001795]
[1730999712039,0.3236402,76132.0,76131.0,3.001795]
[1730999712509,0.42360443,76132.0,76131.0,3.002795]
[1730999712727,0.15360021,76132.0,76131.0,3.001795]
[1730999712936,0.05360021,76132.0,76131.0,3.001795]
[1730999713158,0.06760021,76132.0,76131.0,3.002795]
[1730999713369,0.014,76132.0,76131.0,3.002795]
[1730999713596,0.028,76132.0,76131.0,3.002795]
[1730999714029,0.20785846,76132.0,76131.0,3.002795]
[1730999714210,0.20053863,76132.0,76131.0,3.002795]
[1730999714386,0.12965233,76132.0,76131.0,3.002795]
[1730999714592,0.114,76132.0,76131.0,3.002795]
[1730999714802,0.3376402,76132.0,76131.0,3.002795]
[1730999716182,0.014,76132.0,76131.0,3.002795]
[1730999716614,0.014,76132.0,76131.0,3.13503602]
[1730999717896,0.014,76132.0,76131.0,3.13403602]
[1730999718099,0.014,76132.0,76131.0,3.13603602]
[1730999718545,0.014,76132.0,76131.0,3.13703602]
[1730999718751,0.014,76132.0,76131.0,3.13403602]
[1730999719158,0.05377619,76133.0,76131.0,3.13391002]
[1730999719368,0.05377619,76133.0,76132.0,0.13224102]
[1730999719581,0.1,76149.0,76132.0,0.13224102]
[1730999719802,0.19810218,76150.0,76135.0,0.002]
[1730999719803,0.1,76140.0,76135.0,0.002]
[1730999720019,0.1,76140.0,76136.0,0.13224102]
[1730999720235,0.05300693,76149.0,76136.0,0.13724102]
[1730999721357,0.05300693,76149.0,76136.0,0.13224102]
[1730999721573,0.15300693,76149.0,76136.0,0.13224102]
[1730999721784,0.15300693,76149.0,76136.0,0.13324102]
[1730999722000,0.000834,76140.0,76136.0,0.13224102]
[1730999722425,0.000834,76140.0,76136.0,0.13324102]
[1730999723088,0.000834,76140.0,76136.0,0.13224102]
[1730999723996,0.001834,76140.0,76136.0,0.13324102]
[1730999724618,0.001834,76140.0,76136.0,0.14024102]
[1730999724832,0.1,76137.0,76136.0,0.14024102]
[1730999725279,0.1,76137.0,76136.0,0.008]
[1730999725939,0.001834,76140.0,76131.0,3.000669]
[1730999726142,0.1,76138.0,76131.0,3.000669]
[1730999726354,0.1,76136.0,76131.0,3.000669]
[1730999727405,0.014,76138.0,76131.0,3.000669]
[1730999727661,0.1,76132.0,76131.0,3.000669]
[1730999727882,0.13121022,76132.0,76131.0,3.000669]
[1730999728124,0.1,76132.0,76131.0,3.000669]
[1730999728564,0.1,76132.0,76131.0,3.001669]
[1730999728788,0.1,76132.0,76131.0,3.01376788]
[1730999729000,0.014,76136.0,76131.0,3.000669]
[1730999729233,0.003,76132.0,76131.0,3.01376736]
[1730999729455,0.003,76132.0,76131.0,3.01376773]
[1730999730095,0.003,76132.0,76131.0,3.14600875]
[1730999730517,0.1,76139.0,76131.0,3.01276773]
[1730999730742,0.06821219,76132.0,76131.0,3.000669]
[1730999730957,0.014,76132.0,76131.0,3.01377251]
[1730999731162,0.014,76132.0,76131.0,3.01277251]
[1730999731387,0.114,76132.0,76131.0,2.98710687]
[1730999731586,0.114,76132.0,76131.0,2.97600336]
[1730999731587,0.4797,76132.0,76131.0,2.97600336]
[1730999731809,0.49574216,76132.0,76131.0,2.92869336]
[1730999732025,1.545015,76132.0,76131.0,2.92869336]
[1730999732249,1.357429,76132.0,76131.0,2.92869336]
[1730999732458,0.896461,76132.0,76131.0,2.92769336]
[1730999732888,0.898461,76132.0,76131.0,2.92869336]
[1730999733115,0.1,76128.0,76116.0,0.19810218]
[1730999733538,0.5,76129.0,76116.0,0.19810218]
[1730999733539,0.1,76126.0,76116.0,0.19810218]
[1730999733753,0.1,76124.0,76108.0,0.19810218]
[1730999733976,0.1,76124.0,76109.0,0.01212]
[1730999734181,0.1,76124.0,76110.0,0.01212]
[1730999734385,0.1,76124.0,76111.0,0.01212]
[1730999734591,0.1,76124.0,76112.0,0.01212]
[1730999734799,0.014,76126.0,76113.0,0.01212]
[1730999735011,0.1,76122.0,76114.0,0.01212]
[1730999735302,0.1,76122.0,76115.0,0.01212]
[1730999735483,0.014,76126.0,76108.0,0.001]
[1730999735484,0.1,76116.0,76108.0,0.001]
[1730999735700,0.1,76116.0,76109.0,0.21023285]
[1730999735921,0.1,76116.0,76101.0,0.20310218]
[1730999736158,0.1,76116.0,76110.0,0.14437218]
[1730999736366,0.19810218,76115.0,76111.0,0.01213116]
[1730999736602,0.1,76114.0,76112.0,0.13224102]
[1730999736817,0.1,76114.0,76113.0,0.01213116]
[1730999737043,0.1,76114.0,76113.0,0.01505348]
[1730999737461,0.014,76116.0,76113.0,0.01405348]
[1730999737670,0.014,76116.0,76114.0,0.01213116]
[1730999737884,0.1,76120.0,76115.0,0.01213116]
[1730999738090,0.1,76120.0,76112.0,0.13224102]
[1730999738317,0.1,76120.0,76116.0,0.00192243]
[1730999738540,0.23558081,76132.0,76116.0,0.00192243]
[1730999738541,0.000834,76132.0,76117.0,0.13224102]
[1730999738750,0.19893618,76132.0,76120.0,0.002]
[1730999738958,0.19893618,76132.0,76121.0,0.14437214]
[1730999739166,0.19893618,76132.0,76122.0,0.01213112]
[1730999739409,0.19893618,76132.0,76123.0,0.13224102]
[1730999739640,0.19893618,76132.0,76124.0,0.01212562]
[1730999739874,0.19893618,76132.0,76117.0,0.01]
[1730999739875,0.1,76131.0,76125.0,0.14436664]
[1730999740116,0.19893618,76132.0,76125.0,0.14436664]
[1730999740117,0.014834,76132.0,76126.0,0.01212562]
[1730999740364,0.014834,76132.0,76127.0,0.13224102]
[1730999740599,0.000834,76132.0,76127.0,0.13224102]
[1730999740837,0.014834,76132.0,76127.0,0.13224102]
[1730999741795,0.017834,76132.0,76127.0,0.13324102]
[1730999742012,0.014834,76132.0,76127.0,0.13224102]
[1730999742159,0.000834,76132.0,76127.0,0.13224102]
[1730999742383,0.000834,76132.0,76127.0,0.14224102]
[1730999742564,0.014834,76132.0,76127.0,0.13224102]
[1730999743079,0.000834,76132.0,76127.0,0.13224102]
[1730999743308,0.001834,76132.0,76127.0,0.13524102]
[1730999743972,0.001834,76132.0,76127.0,0.14324102]
[1730999744194,0.001834,76132.0,76127.0,0.13524102]
[1730999744650,0.001834,76132.0,76127.0,0.14424102]
[1730999745111,0.1,76130.0,76127.0,0.14424102]
[1730999745347,0.1,76130.0,76127.0,0.14590902]
[1730999745993,0.1,76130.0,76127.0,0.14290902]
[1730999746446,0.001,76130.0,76127.0,0.13590902]
[1730999747103,0.001,76130.0,76127.0,0.003668]
[1730999747748,0.001,76130.0,76127.0,0.012668]
[1730999748010,0.23486733,76129.0,76127.0,0.012668]
[1730999748227,0.477663,76128.0,76127.0,0.012668]
[1730999748454,0.1,76128.0,76127.0,0.012668]
[1730999748698,0.1,76128.0,76127.0,0.001668]
[1730999748906,0.23224277,76128.0,76127.0,0.008668]
[1730999749116,0.23224277,76128.0,76127.0,0.003668]
[1730999749400,0.1,76129.0,76127.0,0.001668]
[1730999749613,0.003,76128.0,76127.0,0.002668]
[1730999749821,0.017,76128.0,76127.0,0.13490902]
[1730999750041,0.21510218,76128.0,76127.0,0.13490902]
[1730999750255,0.017,76128.0,76127.0,0.13490902]
[1730999750738,0.014,76128.0,76127.0,0.13390902]
[1730999751167,0.003,76128.0,76127.0,0.001]
[1730999752038,0.003,76128.0,76127.0,0.13324102]
[1730999752239,0.003,76128.0,76127.0,0.14656512]
[1730999752429,0.014,76128.0,76127.0,0.14556512]
[1730999752609,0.014,76128.0,76127.0,0.13224102]
[1730999752817,0.1,76129.0,76127.0,0.13224102]
[1730999753012,0.003,76128.0,76127.0,0.001]
[1730999753310,0.003,76128.0,76127.0,0.13324102]
[1730999753311,0.017,76128.0,76127.0,0.13324102]
[1730999754288,0.014,76128.0,76127.0,0.13224102]
[1730999754504,0.014,76128.0,76127.0,0.13324102]
[1730999754684,0.003,76128.0,76127.0,0.13324102]
[1730999754912,0.1,76129.0,76127.0,0.13224102]
[1730999755130,0.1,76129.0,76128.0,0.13224102]
[1730999755341,0.014,76129.0,76128.0,0.13224102]
[1730999755557,0.014,76129.0,76128.0,0.25874102]
[1730999755814,0.014,76129.0,76128.0,0.26074102]
[1730999756034,1.0,76130.0,76129.0,0.002]
[1730999756256,1.0,76130.0,76129.0,0.13424102]
[1730999756665,1.0,76130.0,76129.0,0.1760598]
[1730999757921,1.000834,76130.0,76129.0,0.1760598]
[1730999758124,1.000834,76130.0,76129.0,0.14324102]
[1730999758996,1.001834,76130.0,76129.0,0.14624102]
[1730999759224,1.001834,76130.0,76129.0,0.1818679]
[1730999759442,1.001834,76130.0,76129.0,0.17924102]
[1730999759657,1.001834,76130.0,76129.0,0.22792177]
[1730999759865,1.001834,76130.0,76129.0,0.31792177]
[1730999760723,1.001834,76130.0,76129.0,0.26424102]
[1730999760943,1.000834,76130.0,76129.0,0.26124102]
[1730999761152,1.000834,76130.0,76129.0,0.25224102]
[1730999761372,1.001834,76130.0,76129.0,0.26324102]
[1730999761601,1.001834,76130.0,76129.0,0.27724102]
[1730999761834,1.000834,76130.0,76129.0,0.32144177]
[1730999762045,0.872734,76130.0,76129.0,0.37134177]
[1730999762288,0.622334,76130.0,76129.0,0.25244177]
[1730999762492,0.602634,76130.0,76129.0,0.25244177]
[1730999763134,0.001834,76130.0,76129.0,0.25244177]
[1730999765161,0.001834,76130.0,76129.0,0.22444177]
[1730999765366,0.001834,76130.0,76129.0,0.16424102]
[1730999766397,0.001834,76130.0,76129.0,0.16686763]
[1730999766807,0.001834,76130.0,76129.0,0.17186763]
[1730999766981,0.001834,76130.0,76129.0,0.17686763]
[1730999767816,0.001834,76130.0,76129.0,0.19986763]
[1730999768026,0.001834,76130.0,76129.0,0.24236104]
[1730999768388,0.000834,76140.0,76139.0,0.007]
[1730999768594,0.000834,76140.0,76139.0,0.38826591]
[1730999768837,0.000834,76140.0,76139.0,0.38563949]
[1730999769252,0.000834,76140.0,76139.0,0.61903796]
[1730999769458,0.000834,76140.0,76139.0,0.68094176]
[1730999769606,0.000834,76140.0,76139.0,0.69494176]
[1730999769963,0.19810218,76173.0,76160.0,0.007]
[1730999770171,0.19810218,76173.0,76160.0,0.16224102]
[1730999770391,0.19810218,76173.0,76160.0,0.36263949]
[1730999770599,0.19810218,76173.0,76170.0,0.002]
[1730999770805,0.19810218,76173.0,76171.0,0.13224102]
[1730999771249,0.0458,76177.0,76171.0,0.13224102]
[1730999771659,0.0458,76177.0,76173.0,0.002]
[1730999771892,0.0458,76177.0,76173.0,0.13424102]
[1730999772181,0.000833,76184.0,76173.0,0.17166751]
[1730999772437,0.000833,76184.0,76173.0,0.20466751]
[1730999772653,0.000833,76184.0,76173.0,0.19966751]
[1730999772877,0.000833,76184.0,76173.0,0.20729252]
[1730999773094,0.000833,76184.0,76173.0,0.20229252]
[1730999773329,0.000833,76184.0,76173.0,0.19966751]
[1730999773823,0.000833,76184.0,76173.0,0.21429261]
[1730999774024,0.000833,76184.0,76173.0,0.20729261]
[1730999774245,0.000833,76184.0,76173.0,0.21566751]
[1730999774669,0.000833,76184.0,76173.0,0.22129252]
[1730999774868,0.000833,76184.0,76173.0,0.23266751]
[1730999775766,0.000833,76184.0,76173.0,0.20466751]
[1730999775976,0.000833,76184.0,76173.0,0.16724102]
[1730999776186,0.000833,76184.0,76173.0,0.19024102]
[1730999777466,0.000833,76184.0,76173.0,0.16724102]
[1730999778151,0.000833,76184.0,76173.0,0.42363949]
[1730999778359,0.000833,76184.0,76173.0,0.46100344]
[1730999778569,0.000833,76184.0,76173.0,0.21460497]
[1730999778808,0.000833,76184.0,76173.0,0.20024102]
[1730999779283,0.000833,76184.0,76173.0,0.18624102]
[1730999779876,0.083533,76174.0,76173.0,0.16724102]
[1730999780217,0.000833,76174.0,76173.0,0.16724102]
[1730999780825,0.000833,76174.0,76173.0,0.15850135]
[1730999781043,0.000833,76174.0,76173.0,0.17435149]
[1730999781229,0.000833,76174.0,76173.0,0.19635149]
[1730999781546,0.000833,76174.0,76173.0,0.18235149]
[1730999781797,0.000833,76174.0,76173.0,0.19435149]
[1730999782110,0.000833,76174.0,76173.0,0.18235149]
[1730999782312,0.000833,76174.0,76173.0,0.18835149]
[1730999782514,0.000833,76174.0,76173.0,0.19635149]
[1730999782763,0.000833,76174.0,76173.0,0.18497666]
[1730999782915,0.000833,76174.0,76173.0,0.18235149]
[1730999783132,0.000833,76174.0,76173.0,0.17435149]
[1730999783330,0.000833,76174.0,76173.0,0.18435149]
[1730999783735,0.000833,76174.0,76173.0,0.17435149]
[1730999784102,0.000833,76174.0,76173.0,0.18435149]
[1730999784299,0.000833,76174.0,76173.0,0.42174996]
[1730999784508,0.000833,76174.0,76173.0,0.43574996]
[1730999784728,0.000833,76174.0,76173.0,0.42174996]
[1730999784941,0.000833,76184.0,76183.0,0.002]
[1730999785147,0.000833,76184.0,76183.0,0.15350135]
[1730999785367,0.000833,76184.0,76183.0,0.17035149]
[1730999786642,0.000833,76184.0,76183.0,0.18135149]
[1730999787485,0.000833,76184.0,76183.0,0.17609116]
[1730999787697,0.000833,76184.0,76183.0,0.1954067]
[1730999788758,0.000833,76184.0,76183.0,0.2004067]
[1730999788962,0.000833,76184.0,76183.0,0.25755981]
[1730999789179,0.010833,76190.0,76189.0,0.007]
[1730999789387,0.010833,76190.0,76189.0,0.204376]
[1730999789616,0.010833,76190.0,76189.0,0.64160465]
[1730999790051,0.010833,76190.0,76189.0,0.61745154]
[1730999790258,0.010833,76190.0,76189.0,0.54731656]
[1730999790471,0.010833,76190.0,76189.0,0.56131656]
[1730999790692,0.010833,76190.0,76189.0,0.56132844]
[1730999791257,0.010833,76190.0,76189.0,0.54732844]
[1730999791661,0.010833,76190.0,76189.0,0.56132844]
[1730999791869,0.010833,76190.0,76189.0,0.57532844]
[1730999792069,0.010833,76190.0,76189.0,0.6350463]
[1730999792271,0.010833,76190.0,76189.0,0.6210463]
[1730999792676,0.010833,76190.0,76189.0,0.6310463]
[1730999793130,0.010833,76190.0,76189.0,0.65521995]
[1730999793420,0.010833,76190.0,76189.0,0.59550209]
[1730999794041,0.010833,76190.0,76189.0,0.57132844]
[1730999794275,0.010833,76190.0,76189.0,0.57134216]
[1730999796519,0.010833,76190.0,76189.0,0.56934216]
[1730999796749,0.010833,76190.0,76189.0,0.57134216]
[1730999796964,0.138033,76190.0,76189.0,0.56934216]
[1730999797364,0.138033,76190.0,76189.0,0.62647638]
[1730999797789,0.138033,76190.0,76189.0,0.60713524]
[1730999798010,0.138033,76190.0,76189.0,0.6285296]
[1730999798742,0.138033,76190.0,76189.0,0.57139538]
[1730999799090,0.138033,76190.0,76189.0,0.55200102]
[1730999800251,0.138033,76190.0,76189.0,0.5641384]
[1730999800704,0.138033,76190.0,76189.0,0.5621384]
[1730999801144,0.143033,76190.0,76189.0,0.13224102]
[1730999801397,0.143033,76190.0,76189.0,0.14438184]
[1730999802223,0.148033,76190.0,76189.0,0.41390082]
[1730999802480,0.253033,76190.0,76189.0,0.41390082]
[1730999802699,0.253033,76190.0,76189.0,0.40590082]
[1730999803106,0.253033,76190.0,76189.0,0.40690082]
[1730999803377,0.253033,76190.0,76189.0,0.57983192]
[1730999803584,0.244033,76190.0,76189.0,0.54814184]
[1730999803771,0.143033,76190.0,76189.0,0.53814184]
[1730999804114,0.157033,76190.0,76189.0,0.53914184]
[1730999804933,0.147033,76190.0,76189.0,0.53914184]
[1730999805116,0.147033,76190.0,76189.0,0.54414184]
[1730999805317,0.143033,76190.0,76189.0,0.54314184]
[1730999805775,0.143033,76190.0,76189.0,0.54514184]
[1730999806118,0.153033,76190.0,76189.0,0.41090082]
[1730999806338,0.258033,76190.0,76189.0,0.41090082]
[1730999806579,0.253033,76190.0,76189.0,0.40590082]
[1730999807004,0.267033,76190.0,76189.0,0.40790082]
[1730999807313,0.257033,76190.0,76189.0,0.40690082]
[1730999807457,0.271033,76190.0,76189.0,0.40690082]
[1730999808049,0.271033,76190.0,76189.0,0.40590377]
[1730999808291,0.267033,76190.0,76189.0,0.39376]
[1730999808501,0.271033,76190.0,76189.0,0.39476]
[1730999810996,0.276033,76190.0,76189.0,0.39476]
[1730999811964,0.32344652,76190.0,76189.0,0.39476]
[1730999812179,0.276033,76190.0,76189.0,0.26666]
[1730999813312,0.276033,76190.0,76189.0,0.27879979]
[1730999814777,0.276033,76190.0,76189.0,0.27879625]
[1730999815532,0.258033,76190.0,76189.0,0.27779625]
[1730999815671,0.262033,76190.0,76189.0,0.27879625]
[1730999816239,0.258033,76190.0,76189.0,0.27779625]
[1730999816449,0.258033,76190.0,76189.0,0.26566]
[1730999816600,0.271033,76190.0,76189.0,0.26666]
[1730999817014,0.262033,76190.0,76189.0,0.26666]
[1730999817224,0.275033,76190.0,76189.0,0.26766]
[1730999817725,0.285033,76190.0,76189.0,0.13956]
[1730999817927,0.4509534,76190.0,76189.0,0.13956]
[1730999818406,0.4529534,76190.0,76189.0,0.13956]
[1730999818707,0.4509534,76190.0,76189.0,0.13956]
[1730999818841,0.276033,76190.0,76189.0,0.13856]
[1730999819041,0.280033,76190.0,76189.0,0.13956]
[1730999819526,0.285033,76190.0,76189.0,0.13956]
[1730999819713,0.3315526,76190.0,76189.0,0.13756]
[1730999819861,0.257033,76190.0,76189.0,0.13856]
[1730999820061,0.286033,76190.0,76189.0,0.13856]
[1730999820273,0.282033,76190.0,76189.0,0.13756]
[1730999820495,0.296033,76190.0,76189.0,0.13756]
[1730999820714,0.42827402,76190.0,76189.0,0.13756]
[1730999820916,0.40227402,76190.0,76189.0,0.13756]
[1730999821121,0.41627402,76190.0,76189.0,0.13756]
[1730999821324,0.40227402,76190.0,76189.0,0.13756]
[1730999821759,0.41627402,76190.0,76189.0,0.13756]
[1730999821990,0.282033,76190.0,76189.0,0.13756]
[1730999822246,0.153033,76190.0,76189.0,0.1514828]
[1730999822467,0.119133,76190.0,76189.0,0.13756]
[1730999822901,0.105133,76190.0,76189.0,0.13756]
[1730999823313,0.119133,76190.0,76189.0,0.13756]
[1730999823533,0.233133,76190.0,76189.0,0.13756]
[1730999824154,0.247133,76190.0,76189.0,0.13756]
[1730999824363,0.219133,76190.0,76189.0,0.13756]
[1730999824567,0.205133,76190.0,76189.0,0.13756]
[1730999824786,0.219133,76190.0,76189.0,0.13756]
[1730999824966,0.233133,76190.0,76189.0,0.13856]
[1730999825424,0.219133,76190.0,76189.0,0.13756]
[1730999825842,0.233133,76190.0,76189.0,0.13856]
[1730999826207,0.053833,76190.0,76189.0,0.13856]
[1730999827673,0.048833,76190.0,76189.0,0.27080102]
[1730999827847,0.053833,76190.0,76189.0,0.27080102]
[1730999828045,0.048833,76190.0,76189.0,0.27080102]
[1730999828244,0.038833,76190.0,76189.0,0.27080102]
[1730999828472,0.038833,76190.0,76189.0,0.31060792]
[1730999829078,0.024833,76190.0,76189.0,0.30960792]
[1730999829240,0.024833,76190.0,76189.0,0.27380102]
[1730999830302,0.010833,76190.0,76189.0,0.27546702]
[1730999830440,0.011833,76190.0,76189.0,0.27846702]
[1730999830639,0.011833,76190.0,76189.0,0.27146702]
[1730999831127,0.012833,76190.0,76189.0,0.27746702]
[1730999831531,0.012833,76190.0,76189.0,0.42952788]
[1730999831884,0.012833,76190.0,76189.0,0.42652788]
[1730999832125,0.01268326,76190.0,76189.0,0.42652788]
[1730999832309,0.01368326,76190.0,76189.0,0.43852788]
[1730999833133,0.01268326,76190.0,76189.0,0.43852788]
[1730999833370,0.01168326,76190.0,76189.0,0.28346702]
[1730999833570,0.01268326,76190.0,76189.0,0.29246702]
[1730999834114,0.01268326,76190.0,76189.0,0.33444052]
[1730999834491,0.01268326,76190.0,76189.0,0.45894052]
[1730999834938,0.00268326,76190.0,76189.0,0.45894052]
[1730999835567,0.00168326,76190.0,76189.0,0.44694052]
[1730999836328,0.00068326,76190.0,76189.0,0.43794052]
[1730999836528,0.00168326,76190.0,76189.0,0.45194052]
[1730999836939,0.00068326,76190.0,76189.0,0.43794052]
[1730999837357,0.00168326,76190.0,76189.0,0.45194052]
[1730999837557,0.00068326,76190.0,76189.0,0.45194052]
[1730999838036,0.00168326,76190.0,76189.0,0.47494052]
[1730999838417,0.00168326,76190.0,76189.0,0.48894052]
[1730999838652,0.00168326,76190.0,76189.0,0.56640384]
[1730999838893,0.00168326,76190.0,76189.0,0.55240384]
[1730999839352,0.00168326,76190.0,76189.0,0.56640384]
[1730999839575,0.00068326,76190.0,76189.0,0.47494052]
[1730999839804,0.00168326,76190.0,76189.0,0.48894052]
[1730999840267,0.00168326,76190.0,76189.0,0.56640384]
[1730999840664,0.00168326,76190.0,76189.0,0.46094052]
[1730999840665,0.00068326,76190.0,76189.0,0.46094052]
[1730999840864,0.00068326,76190.0,76189.0,0.53840384]
[1730999840984,0.00168326,76190.0,76189.0,0.56640384]
[1730999841185,0.00168326,76190.0,76189.0,0.62640384]
[1730999841502,0.00168326,76190.0,76189.0,0.53494052]
[1730999841706,0.00168326,76190.0,76189.0,0.54894052]
[1730999842350,0.00068326,76190.0,76189.0,0.53494052]
[1730999842515,0.00068326,76190.0,76189.0,0.54894052]
[1730999842706,0.00168326,76190.0,76189.0,0.54894052]
[1730999843473,0.00168326,76190.0,76189.0,0.62640384]
[1730999843714,0.00168326,76190.0,76189.0,0.54894052]
[1730999843938,0.00168326,76190.0,76189.0,0.93052556]
[1730999844123,0.39810218,76196.0,76195.0,0.17506086]
[1730999844325,0.39810218,76196.0,76195.0,0.45991663]
[1730999844529,0.2,76196.0,76195.0,1.15684663]
[1730999845161,9.03946366,76197.0,76196.0,0.1479]
[1730999845405,8.36607838,76197.0,76196.0,0.023]
[1730999845613,8.36607838,76197.0,76196.0,0.77292]
[1730999845614,8.28529385,76197.0,76196.0,0.77292]
[1730999845764,8.2005386,76197.0,76196.0,1.07704172]
[1730999845969,8.2005386,76197.0,76195.0,0.014]
[1730999845970,9.2297766,76197.0,76195.0,0.014]
[1730999846190,9.2297766,76197.0,76151.0,0.11595888]
[1730999846191,0.77,76163.0,76151.0,0.11595888]
[1730999846348,0.77,76163.0,76117.0,0.78743774]
[1730999846349,0.015,76143.0,76142.0,0.11595888]
[1730999846546,0.01,76141.0,76129.0,0.15372886]